[Event "*** Titled Tuesday Blitz"]
[Site "Chess.com"]
[Date "2018.07.03"]
[Round "9"]
[White "Karina_Oparina"]
[Black "SamCopeland"]
[Result "1-0"]
[WhiteElo "2196"]
[BlackElo "1967"]
[TimeControl "180+2"]
[EndTime "14:55:41 PDT"]
[Termination "Karina_Oparina won by resignation"]

1. Nf3 {[%clk 0:03:01.1]} 1... f5 {[%clk 0:02:57.2]} 2. d4 {[%clk 0:02:59.7]}
2... Nf6 {[%clk 0:02:58.1]} 3. g3 {[%clk 0:03:00.9]} 3... g6 {[%clk 0:02:57.3]}
4. Bg2 {[%clk 0:03:02.1]} 4... Bg7 {[%clk 0:02:58.8]} 5. O-O {[%clk 0:03:03.3]}
5... O-O {[%clk 0:03:00.4]} 6. c4 {[%clk 0:03:04.4]} 6... d6 {[%clk 0:03:01.8]}
7. Nc3 {[%clk 0:03:05.4]} 7... Qe8 {[%clk 0:03:02.8]} 8. d5 {[%clk 0:03:05.5]}
8... a5 {[%clk 0:03:02.2]} 9. Nd4 {[%clk 0:03:06.1]} 9... Na6 {[%clk 0:02:59.8]}
10. b3 {[%clk 0:03:05.5]} 10... Bd7 {[%clk 0:02:56.9]} 11. Bb2 {[%clk
0:03:06.4]} 11... Nc5 {[%clk 0:02:56.8]} 12. Qc2 {[%clk 0:03:03.5]} 12... c6
{[%clk 0:02:57.7]} 13. dxc6 {[%clk 0:03:03.1]} 13... bxc6 {[%clk 0:02:56.2]} 14.
Rad1 {[%clk 0:02:59.3]} 14... Rc8 {[%clk 0:02:44.1]} 15. e3 {[%clk 0:02:53.2]}
15... Qf7 {[%clk 0:02:42.9]} 16. Nde2 {[%clk 0:02:52.9]} 16... g5 {[%clk
0:02:40.1]} 17. f4 {[%clk 0:02:45.6]} 17... Ng4 {[%clk 0:02:20]} 18. Qd2 {[%clk
0:02:45.2]} 18... h6 {[%clk 0:02:15.3]} 19. h3 {[%clk 0:02:43.3]} 19... Nf6
{[%clk 0:02:07.5]} 20. Nd4 {[%clk 0:02:40.6]} 20... Qg6 {[%clk 0:02:01.1]} 21.
Kh2 {[%clk 0:02:38.4]} 21... g4 {[%clk 0:01:36.3]} 22. h4 {[%clk 0:02:36.6]}
22... Nfe4 {[%clk 0:01:09.9]} 23. Nxe4 {[%clk 0:02:34.4]} 23... fxe4 {[%clk
0:01:09.8]} 24. Ba3 {[%clk 0:02:24.9]} 24... Nb7 {[%clk 0:00:45.3]} 25. Ne2
{[%clk 0:02:17.2]} 25... Qf6 {[%clk 0:00:41.5]} 26. Rb1 {[%clk 0:02:14.6]} 26...
Bf5 {[%clk 0:00:40.3]} 27. Bb2 {[%clk 0:02:15.5]} 27... Qf7 {[%clk 0:00:40.2]}
28. Bxg7 {[%clk 0:02:10.7]} 28... Qxg7 {[%clk 0:00:42.1]} 29. Nd4 {[%clk
0:02:08.5]} 29... Nc5 {[%clk 0:00:41.3]} 30. Qxa5 {[%clk 0:02:04.4]} 30... e5
{[%clk 0:00:34.5]} 31. fxe5 {[%clk 0:01:57]} 31... Qxe5 {[%clk 0:00:36.4]} 32.
b4 {[%clk 0:01:47.8]} 32... Nd3 {[%clk 0:00:19.2]} 33. Qxe5 {[%clk 0:01:46]}
33... Nxe5 {[%clk 0:00:17.8]} 34. Nxf5 {[%clk 0:01:42]} 34... Nf3+ {[%clk
0:00:17.9]} 35. Bxf3 {[%clk 0:01:41.9]} 35... gxf3 {[%clk 0:00:17.6]} 36. Ne7+
{[%clk 0:01:41.7]} 1-0

[Event "*** Titled Tuesday Blitz"]
[Site "Chess.com"]
[Date "2018.07.03"]
[Round "9"]
[White "Last7Samurai"]
[Black "meoluoi91"]
[Result "1-0"]
[WhiteElo "2614"]
[BlackElo "2514"]
[TimeControl "180+2"]
[EndTime "14:55:50 PDT"]
[Termination "Last7Samurai won by checkmate"]

1. e4 {[%clk 0:03:01.9]} 1... c6 {[%clk 0:03:00.8]} 2. Nf3 {[%clk 0:03:02.6]}
2... d5 {[%clk 0:03:02]} 3. exd5 {[%clk 0:03:03.8]} 3... cxd5 {[%clk 0:03:03.2]}
4. Ne5 {[%clk 0:03:05.2]} 4... Nf6 {[%clk 0:02:58.1]} 5. d4 {[%clk 0:03:05.8]}
5... e6 {[%clk 0:02:52.8]} 6. c3 {[%clk 0:03:06.3]} 6... Nc6 {[%clk 0:02:52.8]}
7. Bd3 {[%clk 0:03:06.8]} 7... Nxe5 {[%clk 0:02:47.9]} 8. dxe5 {[%clk
0:03:08.7]} 8... Nd7 {[%clk 0:02:49.3]} 9. Qe2 {[%clk 0:03:08.7]} 9... Qc7
{[%clk 0:02:48.9]} 10. f4 {[%clk 0:03:08.7]} 10... Bc5 {[%clk 0:02:49.2]} 11.
Be3 {[%clk 0:03:08.4]} 11... b6 {[%clk 0:02:43.4]} 12. Nd2 {[%clk 0:03:02.9]}
12... a5 {[%clk 0:02:36]} 13. Nf3 {[%clk 0:03:01.3]} 13... Be7 {[%clk
0:02:29.4]} 14. Nd4 {[%clk 0:02:55.7]} 14... Nc5 {[%clk 0:02:25.3]} 15. Bc2
{[%clk 0:02:51.1]} 15... Ba6 {[%clk 0:02:22.5]} 16. Nb5 {[%clk 0:02:51.7]} 16...
Qd7 {[%clk 0:02:12.2]} 17. a4 {[%clk 0:02:51.9]} 17... O-O {[%clk 0:02:12.3]}
18. O-O {[%clk 0:02:52.6]} 18... g6 {[%clk 0:02:00.5]} 19. Kh1 {[%clk
0:02:51.6]} 19... Rfc8 {[%clk 0:02:01.4]} 20. Rad1 {[%clk 0:02:49.6]} 20... Qe8
{[%clk 0:02:00.3]} 21. Bd4 {[%clk 0:02:44.1]} 21... Bb7 {[%clk 0:01:54.8]} 22.
g4 {[%clk 0:02:41.8]} 22... Bc6 {[%clk 0:01:36.9]} 23. f5 {[%clk 0:02:40.9]}
23... Bf8 {[%clk 0:01:33.7]} 24. Rf3 {[%clk 0:02:27.4]} 24... Nd7 {[%clk
0:01:30.4]} 25. Rdf1 {[%clk 0:02:24.1]} 25... Bg7 {[%clk 0:01:17.8]} 26. Nd6
{[%clk 0:02:16.7]} 26... Qd8 {[%clk 0:01:03.4]} 27. Nxf7 {[%clk 0:01:50.6]}
27... Kxf7 {[%clk 0:01:03.9]} 28. fxe6+ {[%clk 0:01:51.4]} 28... Kxe6 {[%clk
0:01:01.8]} 29. Rf7 {[%clk 0:01:49.9]} 29... Qh8 {[%clk 0:00:52.2]} 30. g5
{[%clk 0:01:45.5]} 30... Nxe5 {[%clk 0:00:48.1]} 31. Bxe5 {[%clk 0:01:39]} 31...
d4+ {[%clk 0:00:36.8]} 32. Kg1 {[%clk 0:01:33.8]} 32... Bxe5 {[%clk 0:00:37.5]}
33. R1f6+ {[%clk 0:01:27]} 33... Kd5 {[%clk 0:00:16.1]} 34. Bb3+ {[%clk
0:01:21.8]} 34... Kc5 {[%clk 0:00:15.4]} 35. Qc4# {[%clk 0:01:23.2]} 1-0

[Event "*** Titled Tuesday Blitz"]
[Site "Chess.com"]
[Date "2018.07.03"]
[Round "9"]
[White "dreamist"]
[Black "RiskyDecision"]
[Result "1-0"]
[WhiteElo "2606"]
[BlackElo "2519"]
[TimeControl "180+2"]
[EndTime "14:56:06 PDT"]
[Termination "dreamist won by resignation"]

1. g3 {[%clk 0:02:08.3]} 1... d5 {[%clk 0:02:58.8]} 2. Nf3 {[%clk 0:02:08.3]}
2... Bg4 {[%clk 0:02:57.3]} 3. Bg2 {[%clk 0:02:09.6]} 3... Nd7 {[%clk
0:02:57.4]} 4. d4 {[%clk 0:02:09.6]} 4... c6 {[%clk 0:02:56.6]} 5. c4 {[%clk
0:02:10.6]} 5... Ngf6 {[%clk 0:02:56.1]} 6. Nc3 {[%clk 0:02:11.4]} 6... e6
{[%clk 0:02:55.9]} 7. Qb3 {[%clk 0:02:10.5]} 7... Qb6 {[%clk 0:02:48]} 8. c5
{[%clk 0:02:06.9]} 8... Qxb3 {[%clk 0:02:48]} 9. axb3 {[%clk 0:02:08.5]} 9... a6
{[%clk 0:02:48.8]} 10. b4 {[%clk 0:02:06.3]} 10... Rc8 {[%clk 0:02:45.6]} 11.
Bf4 {[%clk 0:02:05.3]} 11... Bxf3 {[%clk 0:02:29.7]} 12. Bxf3 {[%clk 0:02:05.8]}
12... Be7 {[%clk 0:02:31.1]} 13. Nb1 {[%clk 0:01:56.9]} 13... Bd8 {[%clk
0:02:25.9]} 14. Nd2 {[%clk 0:01:56.7]} 14... Bc7 {[%clk 0:02:26.9]} 15. Nb3
{[%clk 0:01:56.9]} 15... e5 {[%clk 0:02:20]} 16. dxe5 {[%clk 0:01:57.8]} 16...
Bxe5 {[%clk 0:02:15.6]} 17. Na5 {[%clk 0:01:53.2]} 17... Bxb2 {[%clk 0:02:01.4]}
18. Rb1 {[%clk 0:01:53.8]} 18... Bc3+ {[%clk 0:02:01.6]} 19. Kf1 {[%clk
0:01:54.1]} 19... Nxc5 {[%clk 0:01:58.2]} 20. bxc5 {[%clk 0:01:52.5]} 20... Bxa5
{[%clk 0:01:58.7]} 21. Rxb7 {[%clk 0:01:54.1]} 21... O-O {[%clk 0:01:52.4]} 22.
Kg2 {[%clk 0:01:55]} 22... Ne4 {[%clk 0:01:24.5]} 23. Bxe4 {[%clk 0:01:54.2]}
23... dxe4 {[%clk 0:01:26]} 24. Ra1 {[%clk 0:01:55.3]} 24... Bc3 {[%clk
0:01:25.5]} 25. Rxa6 {[%clk 0:01:55.8]} 25... Bd4 {[%clk 0:01:19.4]} 26. Bd6
{[%clk 0:01:55.8]} 26... Ra8 {[%clk 0:01:01.8]} 27. Rxc6 {[%clk 0:01:42]} 27...
Rfe8 {[%clk 0:00:58.2]} 28. e3 {[%clk 0:01:37]} 28... Be5 {[%clk 0:00:59.1]} 29.
Rcc7 {[%clk 0:01:32.4]} 29... Bxd6 {[%clk 0:00:56.4]} 30. cxd6 {[%clk
0:01:33.4]} 30... Rf8 {[%clk 0:00:58]} 31. Re7 {[%clk 0:01:32.8]} 31... Rad8
{[%clk 0:00:47]} 32. d7 {[%clk 0:01:17.8]} 32... f5 {[%clk 0:00:45.1]} 33. g4
{[%clk 0:01:16.2]} 33... Rf7 {[%clk 0:00:36.3]} 34. Re8+ {[%clk 0:01:07.3]}
34... Rf8 {[%clk 0:00:34.6]} 35. Rxd8 {[%clk 0:01:06.2]} 35... Rxd8 {[%clk
0:00:35.1]} 36. gxf5 {[%clk 0:01:07.9]} 36... Kf7 {[%clk 0:00:33.3]} 37. Kg3
{[%clk 0:01:09.4]} 1-0

[Event "*** Titled Tuesday Blitz"]
[Site "Chess.com"]
[Date "2018.07.03"]
[Round "9"]
[White "PaulfromSPb"]
[Black "GM_dmitrij"]
[Result "0-1"]
[WhiteElo "2527"]
[BlackElo "2802"]
[TimeControl "180+2"]
[EndTime "14:56:09 PDT"]
[Termination "GM_dmitrij won by resignation"]

1. d4 {[%clk 0:03:01.9]} 1... Nf6 {[%clk 0:03:00.4]} 2. Bg5 {[%clk 0:03:02.8]}
2... Ne4 {[%clk 0:03:00.7]} 3. Bh4 {[%clk 0:03:03.4]} 3... c5 {[%clk 0:03:00.5]}
4. f3 {[%clk 0:03:04.3]} 4... g5 {[%clk 0:03:01.9]} 5. fxe4 {[%clk 0:03:05]}
5... gxh4 {[%clk 0:03:03.3]} 6. e3 {[%clk 0:03:04.5]} 6... Qb6 {[%clk
0:03:04.2]} 7. Nc3 {[%clk 0:03:04.9]} 7... Bh6 {[%clk 0:03:00.9]} 8. Kf2 {[%clk
0:03:05.9]} 8... Nc6 {[%clk 0:02:58.6]} 9. Na4 {[%clk 0:02:55.1]} 9... Qc7
{[%clk 0:02:35.4]} 10. Nxc5 {[%clk 0:02:51.8]} 10... e5 {[%clk 0:02:34.1]} 11.
Nf3 {[%clk 0:02:46]} 11... d6 {[%clk 0:02:26.2]} 12. Nb3 {[%clk 0:02:39]} 12...
Bg4 {[%clk 0:02:21.3]} 13. c3 {[%clk 0:02:30.3]} 13... f5 {[%clk 0:02:13.1]} 14.
Bd3 {[%clk 0:02:26.5]} 14... O-O-O {[%clk 0:01:57.7]} 15. h3 {[%clk 0:02:19.6]}
15... Bh5 {[%clk 0:01:52.5]} 16. exf5 {[%clk 0:02:17.8]} 16... d5 {[%clk
0:01:53.9]} 17. dxe5 {[%clk 0:02:00.8]} 17... Nxe5 {[%clk 0:01:55.8]} 18. Be2
{[%clk 0:02:01.7]} 18... Rhg8 {[%clk 0:01:49.7]} 19. Nxh4 {[%clk 0:01:47.8]}
19... Nc4 {[%clk 0:01:30.5]} 20. g4 {[%clk 0:01:38.5]} 20... Bxe3+ {[%clk
0:01:25.7]} 21. Kg2 {[%clk 0:01:32.9]} 21... Bg5 {[%clk 0:01:25.1]} 22. Qe1
{[%clk 0:01:17]} 22... Ne3+ {[%clk 0:01:21.3]} 23. Kg1 {[%clk 0:01:18.2]} 23...
Nc2 {[%clk 0:01:18.2]} 24. Qf1 {[%clk 0:00:47]} 24... Bxh4 {[%clk 0:00:50.7]}
25. Rc1 {[%clk 0:00:41.1]} 25... Ne3 {[%clk 0:00:35]} 26. Qf3 {[%clk 0:00:41.3]}
26... Nxg4 {[%clk 0:00:33.5]} 27. hxg4 {[%clk 0:00:25.5]} 27... Bxg4 {[%clk
0:00:34.3]} 0-1

[Event "*** Titled Tuesday Blitz"]
[Site "Chess.com"]
[Date "2018.07.03"]
[Round "9"]
[White "2Tilted"]
[Black "Morshynska"]
[Result "1-0"]
[WhiteElo "2298"]
[BlackElo "2134"]
[TimeControl "180+2"]
[EndTime "14:56:09 PDT"]
[Termination "2Tilted won on time"]

1. d4 {[%clk 0:03:01.9]} 1... Nf6 {[%clk 0:02:58.9]} 2. Nf3 {[%clk 0:03:02.6]}
2... e6 {[%clk 0:02:58.3]} 3. c4 {[%clk 0:03:03.2]} 3... b6 {[%clk 0:02:57.1]}
4. g3 {[%clk 0:03:04.5]} 4... Bb7 {[%clk 0:02:57.4]} 5. Bg2 {[%clk 0:03:05.8]}
5... Be7 {[%clk 0:02:57.5]} 6. O-O {[%clk 0:03:07]} 6... O-O {[%clk 0:02:57.7]}
7. d5 {[%clk 0:03:06.4]} 7... exd5 {[%clk 0:02:57.8]} 8. Nh4 {[%clk 0:03:07.1]}
8... c6 {[%clk 0:02:57.7]} 9. cxd5 {[%clk 0:03:01.8]} 9... Nxd5 {[%clk
0:02:59.6]} 10. Nf5 {[%clk 0:03:01.8]} 10... Nc7 {[%clk 0:02:57.5]} 11. e4
{[%clk 0:03:00.1]} 11... d5 {[%clk 0:02:57.2]} 12. Nc3 {[%clk 0:03:00.7]} 12...
Nba6 {[%clk 0:02:55.5]} 13. Bf4 {[%clk 0:03:00]} 13... Bc8 {[%clk 0:02:38.9]}
14. Nxe7+ {[%clk 0:02:58]} 14... Qxe7 {[%clk 0:02:40.8]} 15. exd5 {[%clk
0:02:58.4]} 15... cxd5 {[%clk 0:02:32.9]} 16. Nxd5 {[%clk 0:02:42.8]} 16... Nxd5
{[%clk 0:02:32.1]} 17. Bxd5 {[%clk 0:02:42.5]} 17... Bb7 {[%clk 0:02:09.6]} 18.
Re1 {[%clk 0:02:31.7]} 18... Qd7 {[%clk 0:02:06.5]} 19. Bxb7 {[%clk 0:02:25.6]}
19... Qxb7 {[%clk 0:02:08.4]} 20. Qg4 {[%clk 0:02:06.4]} 20... Nc5 {[%clk
0:01:53.6]} 21. Bd6 {[%clk 0:01:41.6]} 21... Rfe8 {[%clk 0:01:46.9]} 22. Be5
{[%clk 0:01:41.9]} 22... Ne6 {[%clk 0:01:34]} 23. f4 {[%clk 0:01:42.8]} 23... f6
{[%clk 0:00:34.1]} 24. Bxf6 {[%clk 0:01:24.1]} 24... Nc5 {[%clk 0:00:25.2]} 25.
Bc3 {[%clk 0:01:13.7]} 25... Ne4 {[%clk 0:00:16]} 26. Be5 {[%clk 0:01:09.4]}
26... Nd2 {[%clk 0:00:14]} 27. Re3 {[%clk 0:01:10.2]} 27... Nc4 {[%clk
0:00:11.7]} 28. Re2 {[%clk 0:01:07.1]} 28... Nxe5 {[%clk 0:00:09.1]} 29. fxe5
{[%clk 0:01:06.5]} 29... Qd5 {[%clk 0:00:08.8]} 30. e6 {[%clk 0:01:02.4]} 30...
Rac8 {[%clk 0:00:08]} 31. e7 {[%clk 0:00:58.5]} 31... Rc7 {[%clk 0:00:06.8]} 32.
Rae1 {[%clk 0:00:59]} 1-0

[Event "*** Titled Tuesday Blitz"]
[Site "Chess.com"]
[Date "2018.07.03"]
[Round "9"]
[White "djamir"]
[Black "Roachelley"]
[Result "1-0"]
[WhiteElo "2593"]
[BlackElo "2323"]
[TimeControl "180+2"]
[EndTime "14:56:10 PDT"]
[Termination "djamir won by resignation"]

1. e4 {[%clk 0:03:01.9]} 1... c5 {[%clk 0:03:00.4]} 2. Nf3 {[%clk 0:02:59.5]}
2... d6 {[%clk 0:03:00]} 3. d4 {[%clk 0:03:00.9]} 3... cxd4 {[%clk 0:03:01.9]}
4. Nxd4 {[%clk 0:03:02.8]} 4... Nf6 {[%clk 0:03:02.7]} 5. Bd3 {[%clk 0:03:02]}
5... g6 {[%clk 0:02:58.8]} 6. O-O {[%clk 0:02:51.6]} 6... Bg7 {[%clk 0:02:59.2]}
7. Nb3 {[%clk 0:02:52.9]} 7... O-O {[%clk 0:02:58.7]} 8. c4 {[%clk 0:02:54.1]}
8... Nc6 {[%clk 0:02:54.5]} 9. Nc3 {[%clk 0:02:55.2]} 9... Bd7 {[%clk
0:02:50.8]} 10. h3 {[%clk 0:02:51]} 10... Rc8 {[%clk 0:02:43.5]} 11. Be3 {[%clk
0:02:31.7]} 11... Ne5 {[%clk 0:02:43.2]} 12. Qe2 {[%clk 0:02:32.8]} 12... Bc6
{[%clk 0:02:36.5]} 13. f4 {[%clk 0:02:14.3]} 13... Nxd3 {[%clk 0:02:35.6]} 14.
Qxd3 {[%clk 0:02:16.2]} 14... Qc7 {[%clk 0:02:23.3]} 15. Rac1 {[%clk 0:02:13.8]}
15... Rfd8 {[%clk 0:02:18.8]} 16. Nd5 {[%clk 0:02:10]} 16... Bxd5 {[%clk
0:02:13.6]} 17. exd5 {[%clk 0:01:32.9]} 17... Nd7 {[%clk 0:02:00.2]} 18. Qe2
{[%clk 0:01:20.5]} 18... Nb6 {[%clk 0:01:51.1]} 19. Bxb6 {[%clk 0:00:52.3]}
19... Qxb6+ {[%clk 0:01:51.1]} 20. Kh2 {[%clk 0:00:53.7]} 20... Rc7 {[%clk
0:01:48.8]} 21. Rc2 {[%clk 0:00:54.3]} 21... Rdc8 {[%clk 0:01:48.5]} 22. Nd2
{[%clk 0:00:54.4]} 22... Qd4 {[%clk 0:01:44.6]} 23. b3 {[%clk 0:00:52.3]} 23...
b5 {[%clk 0:01:34.4]} 24. g3 {[%clk 0:00:47.1]} 24... Qb6 {[%clk 0:01:15.8]} 25.
Rfc1 {[%clk 0:00:44.9]} 25... Qa5 {[%clk 0:01:11.3]} 26. Kg2 {[%clk 0:00:40]}
26... bxc4 {[%clk 0:01:01.5]} 27. bxc4 {[%clk 0:00:40.8]} 27... Qa3 {[%clk
0:00:59]} 28. Rb1 {[%clk 0:00:38.3]} 28... Qa4 {[%clk 0:00:49.6]} 29. Rb3 {[%clk
0:00:38.3]} 29... Rc5 {[%clk 0:00:47]} 30. Qxe7 {[%clk 0:00:29]} 30... Rxd5
{[%clk 0:00:38]} 31. cxd5 {[%clk 0:00:29.9]} 31... Rxc2 {[%clk 0:00:34]} 32.
Rb8+ {[%clk 0:00:30.9]} 32... Rc8 {[%clk 0:00:32.5]} 1-0

[Event "*** Titled Tuesday Blitz"]
[Site "Chess.com"]
[Date "2018.07.03"]
[Round "9"]
[White "joppie2"]
[Black "Hrant_ChessMood"]
[Result "1-0"]
[WhiteElo "2745"]
[BlackElo "2892"]
[TimeControl "180+2"]
[EndTime "14:56:44 PDT"]
[Termination "joppie2 won on time"]

1. e4 {[%clk 0:03:01.9]} 1... e5 {[%clk 0:02:58.7]} 2. Nf3 {[%clk 0:03:03.4]}
2... Nc6 {[%clk 0:03:00]} 3. Nc3 {[%clk 0:03:05]} 3... Nf6 {[%clk 0:03:00.4]} 4.
a3 {[%clk 0:03:06.5]} 4... d5 {[%clk 0:02:59.5]} 5. Bb5 {[%clk 0:03:07.4]} 5...
Nxe4 {[%clk 0:03:00.3]} 6. Qe2 {[%clk 0:03:05.4]} 6... Nxc3 {[%clk 0:02:48.4]}
7. Qxe5+ {[%clk 0:03:04.7]} 7... Be7 {[%clk 0:02:32.9]} 8. dxc3 {[%clk
0:03:05.2]} 8... O-O {[%clk 0:02:31.9]} 9. Qh5 {[%clk 0:03:06.8]} 9... Bf6
{[%clk 0:02:17.8]} 10. O-O {[%clk 0:03:06.4]} 10... Ne7 {[%clk 0:02:18.4]} 11.
Bg5 {[%clk 0:02:55.6]} 11... g6 {[%clk 0:02:07.9]} 12. Qh4 {[%clk 0:02:37.5]}
12... Nf5 {[%clk 0:02:08.7]} 13. Qf4 {[%clk 0:02:35.8]} 13... Bxg5 {[%clk
0:01:57.7]} 14. Nxg5 {[%clk 0:02:34.6]} 14... h6 {[%clk 0:01:44.3]} 15. Nf3
{[%clk 0:02:35.3]} 15... g5 {[%clk 0:01:45.2]} 16. Qd2 {[%clk 0:02:32.3]} 16...
c6 {[%clk 0:01:42.6]} 17. Bd3 {[%clk 0:02:32.6]} 17... Qf6 {[%clk 0:01:44]} 18.
Rfe1 {[%clk 0:02:31.8]} 18... Nd6 {[%clk 0:01:38.5]} 19. Ne5 {[%clk 0:02:29.3]}
19... Bf5 {[%clk 0:01:35.8]} 20. Bxf5 {[%clk 0:02:25.1]} 20... Qxf5 {[%clk
0:01:34.7]} 21. h3 {[%clk 0:02:04.3]} 21... Ne4 {[%clk 0:01:00.5]} 22. Qd4
{[%clk 0:02:04.1]} 22... c5 {[%clk 0:00:59.7]} 23. Qxd5 {[%clk 0:02:00.2]} 23...
Qxf2+ {[%clk 0:00:59.8]} 24. Kh1 {[%clk 0:01:50.8]} 24... Ng3+ {[%clk
0:00:50.6]} 25. Kh2 {[%clk 0:01:51.4]} 25... Nf5 {[%clk 0:00:21.4]} 26. Ng4
{[%clk 0:01:49.4]} 26... Qf4+ {[%clk 0:00:21.4]} 27. Kg1 {[%clk 0:01:50.4]}
27... Ng3 {[%clk 0:00:07.7]} 28. Nxh6+ {[%clk 0:00:59.9]} 28... Kg7 {[%clk
0:00:08.6]} 29. Ng4 {[%clk 0:00:58.4]} 29... b6 {[%clk 0:00:05.3]} 30. Re5
{[%clk 0:00:58.1]} 30... f6 {[%clk 0:00:02.4]} 31. Re7+ {[%clk 0:00:57.4]} 31...
Kg6 {[%clk 0:00:03.8]} 32. Qd3+ {[%clk 0:00:48]} 32... Nf5 {[%clk 0:00:02.3]}
33. Rf1 {[%clk 0:00:48.4]} 33... Rad8 {[%clk 0:00:02.9]} 34. Rxf4 {[%clk
0:00:46.7]} 34... Rxd3 {[%clk 0:00:03.9]} 35. Rxf5 {[%clk 0:00:47.8]} 1-0

[Event "*** Titled Tuesday Blitz"]
[Site "Chess.com"]
[Date "2018.07.03"]
[Round "9"]
[White "pultineviciuspaulius"]
[Black "albi1999"]
[Result "1-0"]
[WhiteElo "2630"]
[BlackElo "2518"]
[TimeControl "180+2"]
[EndTime "14:56:54 PDT"]
[Termination "pultineviciuspaulius won by resignation"]

1. e4 {[%clk 0:03:01.9]} 1... e5 {[%clk 0:02:59.4]} 2. Nf3 {[%clk 0:03:02.4]}
2... Nc6 {[%clk 0:03:00.4]} 3. Bc4 {[%clk 0:03:03.5]} 3... Bc5 {[%clk
0:02:59.8]} 4. c3 {[%clk 0:03:05]} 4... Nf6 {[%clk 0:03:00.7]} 5. d3 {[%clk
0:03:05.7]} 5... d6 {[%clk 0:03:01.2]} 6. O-O {[%clk 0:03:05]} 6... a6 {[%clk
0:03:00.1]} 7. Re1 {[%clk 0:03:06]} 7... Ba7 {[%clk 0:03:00.4]} 8. Nbd2 {[%clk
0:03:06.3]} 8... Na5 {[%clk 0:02:46.1]} 9. b4 {[%clk 0:03:06.5]} 9... Nxc4
{[%clk 0:02:47]} 10. Nxc4 {[%clk 0:03:08.4]} 10... O-O {[%clk 0:02:46.7]} 11.
Be3 {[%clk 0:03:09.4]} 11... Be6 {[%clk 0:02:39.5]} 12. a4 {[%clk 0:03:07.2]}
12... Bxc4 {[%clk 0:02:31.7]} 13. dxc4 {[%clk 0:03:07.7]} 13... Bxe3 {[%clk
0:02:32.3]} 14. Rxe3 {[%clk 0:03:09.6]} 14... a5 {[%clk 0:02:33.9]} 15. Nd2
{[%clk 0:03:02.7]} 15... Qd7 {[%clk 0:02:31.9]} 16. Rd3 {[%clk 0:02:58]} 16...
Qc6 {[%clk 0:02:27.5]} 17. Rg3 {[%clk 0:02:43.4]} 17... Kh8 {[%clk 0:02:15.3]}
18. Qc2 {[%clk 0:02:32.2]} 18... Nd7 {[%clk 0:02:13.7]} 19. h4 {[%clk 0:02:00]}
19... Nb6 {[%clk 0:02:03.9]} 20. Qd3 {[%clk 0:01:44.1]} 20... axb4 {[%clk
0:02:00.1]} 21. cxb4 {[%clk 0:01:46]} 21... Rxa4 {[%clk 0:01:59]} 22. Rb1 {[%clk
0:01:46.7]} 22... Rfa8 {[%clk 0:01:54.1]} 23. h5 {[%clk 0:01:48]} 23... h6
{[%clk 0:01:50]} 24. Qf3 {[%clk 0:01:46.5]} 24... Qe8 {[%clk 0:01:42.1]} 25. c5
{[%clk 0:01:46.4]} 25... Nd7 {[%clk 0:01:32.3]} 26. Qg4 {[%clk 0:01:45.3]} 26...
g5 {[%clk 0:01:13]} 27. hxg6 {[%clk 0:01:43.8]} 27... fxg6 {[%clk 0:01:14.9]}
28. cxd6 {[%clk 0:01:36.3]} 28... cxd6 {[%clk 0:01:16.8]} 29. Nc4 {[%clk
0:01:35.3]} 29... Nf6 {[%clk 0:00:55.6]} 30. Qh4 {[%clk 0:01:34.5]} 30... Nh5
{[%clk 0:00:52.3]} 31. Nxd6 {[%clk 0:01:29.2]} 31... Qe6 {[%clk 0:00:52.2]} 32.
Nf5 {[%clk 0:01:13.8]} 32... Ra1 {[%clk 0:00:34]} 33. Rxa1 {[%clk 0:01:15]}
33... Rxa1+ {[%clk 0:00:35.4]} 34. Kh2 {[%clk 0:01:16.6]} 34... Kh7 {[%clk
0:00:29.8]} 35. Rd3 {[%clk 0:00:32.4]} 35... Qf7 {[%clk 0:00:26.4]} 36. Qd8
{[%clk 0:00:29.4]} 36... Rd1 {[%clk 0:00:07.3]} 37. Rxd1 {[%clk 0:00:29]} 1-0